Cogmind - Beta 10.2 @@@ ROGUE MODE // 2021.12.04 @ 16:23:35 Player: ChromeKnight Result: Destroyed by as-98738 with Assembled Heavy Rifle Performance ------------- Evolutions (0) 0 Regions Visited (2) 400 Robots Destroyed (9) 45 Value Destroyed (199) 199 Prototype IDs (0) 0 Alien Tech Used (0) 0 Bonus (0) 0 TOTAL SCORE: 644 Bonus ------- None Cogmind --------- Core Integrity 0/250 Matter 283/300 Energy 100/100 System Corruption 1% Temperature Cool (0) Movement Core (550) Ox10 Location -10/Mines Parts ------- > --- POWER (1) -------- (None) > --- PROPULSION (2) --- (None) > --- UTILITY (2) ------ Large Storage Unit Large Storage Unit > --- WEAPON (2) ------- (None) > --- INVENTORY (16) --- Improved Ion Engine Improved Ion Engine Improved Ion Engine Aluminum Leg Aluminum Leg Cooling System Medium Storage Unit Medium Matter Pod (100) High-capacity Matter Pod (200) Weapon Shielding Light Armor Plating Light Armor Plating High-powered Tractor Beam High-powered Tractor Beam Assault Rifle Assault Rifle Peak State ------------ > --- POWER ------------ Improved Ion Engine > --- PROPULSION ------- Aluminum Leg Aluminum Leg > --- UTILITY ---------- Large Storage Unit Large Storage Unit > --- WEAPON ----------- Medium Laser Light Assault Rifle > --- INVENTORY -------- Ion Engine Improved Ion Engine Improved Ion Engine Improved Ion Engine Aluminum Leg Aluminum Leg Aluminum Leg Aluminum Leg Aluminum Leg Medium Storage Unit Medium Matter Pod Medium Matter Pod High-powered Tractor Beam High-powered Tractor Beam Small Laser Grenade Launcher [Rating: 10] Favorites ----------- Power Improved Ion Engine Engine Improved Ion Engine Propulsion Aluminum Leg Leg Aluminum Leg Utility Large Storage Unit Storage Large Storage Unit Weapon Assault Rifle Energy Gun Medium Laser Ballistic Gun Assault Rifle Launcher Grenade Launcher Build | -11 -10 -10 ------- Run | Scr Mat Min Slots Evolved . | . . . Power . | . . . Propulsion . | . . . Utility . | . . . Weapon . | . . . Parts Attached 19 | 6 12 1 Power 2 | 1 1 . Engine 2 | 1 1 . Core . | . . . Reactor . | . . . Propulsion 5 | 2 3 . Treads . | . . . Leg 5 | 2 3 . Wheel . | . . . Hover . | . . . Flight . | . . . Utility 4 | 1 3 . Device . | . . . Storage 4 | 1 3 . Processor . | . . . Hackware . | . . . Protection . | . . . Artifact . | . . . Weapon 8 | 2 5 1 Energy Gun 4 | 1 3 . Energy Cannon . | . . . Ballistic Gun 3 | 1 2 . Ballistic Cannon . | . . . Launcher 1 | . . 1 Special Weapon . | . . . Impact Weapon . | . . . Slashing Weapon . | . . . Piercing Weapon . | . . . Special Melee Weapon . | . . . Unidentified Prototypes . | . . . Parts Lost 6 | . 1 5 Power 1 | . . 1 Propulsion 2 | . . 2 Utility . | . . . Weapon 3 | . 1 2 Highest Loss Streak 5 | . 1 5 Average Slot Usage (%) 96 | . 95 97 Engine 13 | . 14 13 Leg 27 | . 28 27 Storage 25 | . 24 28 Energy Gun 6 | . 10 . Ballistic Gun 21 | . 17 26 Naked Turns . | . . . Heaviest Build 43 | 12 43 43 Greatest Support 20 | 20 20 20 Greatest Overweight (x) 12 | 1 2 12 Average Overweight (x) 1 | . . 2 Largest Inventory Capacity 16 | 6 16 16 Average Capacity 13 | 5 11 16 Most Carried 16 | 1 16 16 Average Carried 11 | . 9 15 Final Capacity 16 | 6 16 16 Final Carried 16 | 1 16 16 Class Distribution -------------------- 100% | Mutant Dominant Class ---------------- Mutant | -10/Materials Mutant | -10/Mines Resources | -11 -10 -10 ----------- Run | Scr Mat Min Matter Collected 829 | 211 410 208 Remotely . | . . . Salvage Created 348 | . 334 14 Parts 21 | . 21 . Haulers Intercepted 2 | . 2 . Recyclers Shooed . | . . . Parts Field Recycled . | . . . Retrieved Matter . | . . . Parts Self-Destructed . | . . . Prevented . | . . . Kills | -11 -10 -10 ------- Run | Scr Mat Min Combat Hostiles Destroyed 9 | . 4 5 Guns 4 | . 4 . AOE 5 | . . 5 Classes Destroyed 5 | . 4 1 Worker 1 | . 1 . Hauler 2 | . 2 . Watcher 2 | . 2 . Grunt 4 | . 4 . Assembled 5 | . . 5 Best Kill Streak 5 | . 3 5 Combat Bots Only 5 | . 2 5 Max Kills in Single Turn 4 | . 1 4 Gunslinging . | . . . Exploded 4 | . . 4 Melee . | . . . Uniques/NPCs Destroyed . | . . . Combat | -11 -10 -10 -------- Run | Scr Mat Min Damage Taken 1025 | . 340 685 Core 258 | . 100 158 Absorbed by Shields . | . . . Core Remaining (%) 100 | 100 . . Volleys Fired 42 | 1 37 4 Largest 2 | 2 2 2 Hottest 70 | 70 70 50 Shots Fired 84 | 2 74 8 Gun 82 | 2 74 6 Cannon . | . . . Launcher 2 | . . 2 Special . | . . . Kinetic 45 | 1 38 6 Thermal 37 | 1 36 . Explosive 2 | . . 2 Electromagnetic . | . . . Robot Hit Streak 18 | 2 18 3 Robot Miss Streak 2 | . 2 2 Penetration Max . | . . . Secondary Targets . | . . . Shots Hit Robots 58 | 2 52 4 Core Hits 35 | 1 17 17 Critical Hits . | . . . Critical Kills . | . . . Critical Parts Destroyed . | . . . Melee Attacks . | . . . Impact . | . . . Slashing . | . . . Piercing . | . . . Sneak Attacks . | . . . Combat Hostiles . | . . . Follow-up Attacks . | . . . Damage Inflicted 1078 | 22 552 504 Guns 639 | 22 552 65 Cannons . | . . . Explosions 439 | . . 439 Melee . | . . . Ramming . | . . . Kinetic 270 | 9 196 65 Thermal 369 | 13 356 . Explosive 439 | . . 439 Electromagnetic . | . . . Impact . | . . . Slashing . | . . . Piercing . | . . . Highest Corruption 1 | . 1 1 Average Corruption 1 | . 1 1 Corruption Purged . | . . . Effects 4 | . 3 1 Message Errors 2 | . 2 . Energy Discharges 1 | . . 1 Targeting Errors 1 | . 1 . Overload Shots . | . . . Overflow Damage . | . . . Projectiles . | . . . Explosions . | . . . Melee . | . . . Knockbacks . | . . . Impact . | . . . Kinetic . | . . . Secondary . | . . . Self-Inflicted Damage 41 | . . 41 Shots 2 | . . 2 Rammed . | . . . Targets Rammed . | . . . Kicked . | . . . Crushed . | . . . Highest Temperature 247 | 30 247 28 Average Temperature 89 | 18 95 17 Received Heat Transfer 196 | . 156 40 Siege Activations . | . . . Robots Corrupted . | . . . Combat Hostiles . | . . . Parts Fried . | . . . Impact Corruptions . | . . . Robots Melted . | . . . Combat Hostiles . | . . . Parts Melted 2 | . 2 . Heat Transferred 1074 | 37 1037 . Parts Sabotaged . | . . . Parts Stolen . | . . . Parts Stripped . | . . . Power Chain Reactions . | . . . Missiles Intercepted . | . . . Alert | -11 -10 -10 ------- Run | Scr Mat Min Peak Influence 153 | . 153 10 Initial 10 | . . 10 Average 31 | . 49 8 Maximum Alert Level . | . . . Low Security (%) 100 | 100 100 100 Level 1 . | . . . Level 2 . | . . . Level 3 . | . . . Level 4 . | . . . Level 5 . | . . . High Security . | . . . Max Security . | . . . Squads Dispatched . | . . . Investigation . | . . . Extermination . | . . . Reinforcement . | . . . Assault . | . . . Garrison . | . . . Intercept . | . . . Construction Impeded . | . . . Haulers Reinforced . | . . . Stealth | -11 -10 -10 --------- Run | Scr Mat Min Distress Signals 1 | . 1 . Communications Jammed . | . . . Distress Signals . | . . . Times Spotted 25 | . 10 15 Peak Tracking Total 14 | . 3 14 Tactical Retreats 1 | . . 1 Traps | -11 -10 -10 ------- Run | Scr Mat Min Traps Triggered 2 | . 2 . Indirectly . | . . . Trap Hack Attempts . | . . . Triggered . | . . . Disarmed . | . . . Reprogrammed . | . . . Reused . | . . . Traps Extracted . | . . . Installed . | . . . Triggered . | . . . Machines | -11 -10 -10 ---------- Run | Scr Mat Min Machines Disabled . | . . . Max in Single Turn . | . . . Machines Sabotaged . | . . . Garrisons Compromised . | . . . Overloaded Fab Kills . | . . . Fab Network Shutdowns . | . . . Hacking | -11 -10 -10 --------- Run | Scr Mat Min Machines Accessed 1 | . 1 . Terminals 1 | . 1 . Fabricators . | . . . Repair Stations . | . . . Recycling Units . | . . . Scanalyzers . | . . . Garrison Access . | . . . Total Hacks 2 | . 2 . Successful 2 | . 2 . Failed . | . . . Catastrophic . | . . . Database Lockouts . | . . . Manual 1 | . 1 . Terminals 2 | . 2 . Fabricators . | . . . Repair Stations . | . . . Recycling Units . | . . . Scanalyzers . | . . . Garrison Access . | . . . Terminal Hacks 1 | . 1 . Registered Prototypes 1 | . 1 . Fabricator Hacks . | . . . Repair Station Hacks . | . . . Recycling Unit Hacks . | . . . Scanalyzer . | . . . Garrison Access Hacks . | . . . Unauthorized Hacks 1 | . 1 . Terminals 1 | . 1 . Botnet 1 | . 1 . Fabricators . | . . . Repair Stations . | . . . Recycling Units . | . . . Scanalyzers . | . . . Garrison Access . | . . . Data Cores Recovered . | . . . Used . | . . . Hacking Detections 1 | . 1 . Full Trace Events . | . . . Feedback Events . | . . . Feedback Blocked . | . . . Robot Schematics Acquired . | . . . Robots Built . | . . . Matter . | . . . Time . | . . . Total Robot Build Rating . | . . . Part Schematics Acquired . | . . . Parts Built . | . . . Matter . | . . . Time . | . . . Total Part Build Rating . | . . . Parts Repaired . | . . . Time . | . . . Parts Recycled . | . . . Recycled Matter . | . . . Retrieved Matter . | . . . Retrieved Components . | . . . Parts Scanalyzed . | . . . Part Schematics Acquired . | . . . Parts Damaged . | . . . Bothacking | -11 -10 -10 ------------ Run | Scr Mat Min Used RIF Installer . | . . . Robots Hacked . | . . . Non-combat . | . . . Combat . | . . . Robot Hacks Applied . | . . . Relay Couplers Released . | . . . Robots Rewired . | . . . Allies Hacked . | . . . Hacks Repelled . | . . . Allies | -11 -10 -10 -------- Run | Scr Mat Min Total Allies . | . . . Largest Group . | . . . Highest-Rated Group . | . . . Highest-Rated Ally . | . . . Total Orders . | . . . Ally Attacks . | . . . Total Damage . | . . . Kills . | . . . Allies Corrupted . | . . . Allies Melted . | . . . Intel | -11 -10 -10 ------- Run | Scr Mat Min Robot Analysis Total . | . . . Derelict Logs Recovered 3 | . . 3 Drone Launches . | . . . Drone Recoveries . | . . . Exploration | -11 -10 -10 ------------- Run | Scr Mat Min Turns Passed 1230 | 63 707 460 Spaces Moved 665 | 44 377 244 Core 6 | 5 . 1 Treads . | . . . Legs 659 | 39 377 243 Wheels . | . . . Hover . | . . . Flight . | . . . Fastest Speed 50 | 50 120 150 Average Speed 156 | 115 144 182 Slowest Speed 650 | 120 180 650 Overloaded Moves . | . . . Propulsion Burnouts . | . . . Robots Hopped . | . . . Cave-ins Triggered . | . . . Exploration Rate (%) 37 | 5 55 51 Regions Visited 2 Branch Regions 1 Pre-discovered Areas 2 | . . 2 Known Exits Taken . | . . . Unknown Exits Taken 2 | 1 1 . Scrap Searched 1 | . . 1 Spaces Dug . | . . . Terrain Destroyed 19 | . . 19 Melee . | . . . Projectile . | . . . AOE 19 | . . 19 Terrain Rammed . | . . . Walls Destroyed . | . . . Machines Disabled . | . . . Actions | -11 -10 -10 --------- Run | Scr Mat Min Total 780 | 51 474 255 Wait 22 | . 22 . Move 663 | 43 376 244 Hop . | . . . Pick Up 22 | 1 18 3 Fast Attach 8 | 6 2 . Attach 2 | . 2 . Detach . | . . . Swap 9 | . 8 1 Drop 12 | . 9 3 Fire 42 | 1 37 4 Melee . | . . . Ram . | . . . Kick . | . . . Crush . | . . . Escape Stasis . | . . . Rewire . | . . . Trap . | . . . Miscellaneous . | . . . Route ------- -11/Scrapyard -10/Materials (discovered 3 exits: [*Mat x2] / [*Min]) -10/Mines History --------- Turn | Location | Event 8 | -11/Scrapyard | Discovered new exit (range 15) 64 | -11/Scrapyard | Entered Materials 187 | -10/Materials | Discovered new exit (range 16) 227 | -10/Materials | Discovered new exit (range 15) 318 | -10/Materials | Build established: Mutant 597 | -10/Materials | Discovered new exit (range 3) 771 | -10/Materials | Entered Mines 837 | -10/Mines | Joined a pair of Derelicts in attacking an 0b10 outpost 892 | -10/Mines | Learned location of Zion (-6) 926 | -10/Mines | Learned location of Storage (-7) 1069 | -10/Mines | Learned Materials stockpile data 1196 | -10/Mines | Assembled infested the area 1201 | -10/Mines | Assisted by a Guerilla fighting off Assembled 1216 | -10/Mines | Core integrity fell below 50% 1231 | -10/Mines | Core integrity fell below 20% 1231 | -10/Mines | Destroyed by as-98738 with Assembled Heavy Rifle Last Messages --------------- 01203_ 1Z-AKM(h): "I'll hold them off! Go on ahead or try to find another way!" 01203_ HV Slug penetrates Wall. 01203_ HV Slug penetrates as-40645. 01203_ as-40645 suffers critical hit. 01203_ as-40645 knocked back. 01205_ as-14524 suffers critical hit. 01205_ as-14524 destroyed. 01207_ 1Z-AKM(h) destroyed. 01212_ T-07 Excavator destroyed. 01212_ as-52610 destroyed. 01215_ as-68600 destroyed. 01215_ as-36203 destroyed. 01215_ as-09029 destroyed. 01215_ as-29843 destroyed. 01215_ Grenade Launcher destroyed. 01217_ The unstable cave ceiling collapses. 01217_ Assault Rifle destroyed. 01221_ Aluminum Leg destroyed. 01228_ Imp. Ion Engine destroyed. Map ----- +----------------------------------------------------+ | ?????????????????????????????????????????????????? | | ?????????????????????????????????????????????????? | | ?????????????????????????????????????????????????? | | ?????????????????????????????????????????????????? | | ?????????????????????????????????????????????????? | | ?????????????????????????????????????????????????? | | ??????????????????????????? ?????????????????????? | | ?????????????????????????? ????????????????????? | | ??????????????????????????# ????????????????????? | | ??????????????????????????# #???????????????????? | | ?????????????????????????## % #??????????????????? | | ????????????????????????? ??????????????????? | | ?????????????????????????? ##????????????????? | | ??????????????????????????# % ##???????????????? | | ??????????????????????????? #???????????????? | | ???????????????????????????? #???????????????? | | ???????????????????????????? ###?????????????? | | ????????????????????????????? #?????????????? | | ????????????????????????????## #?????????????? | | ????????????????????????????# #?????????????? | | ????????????????????????????# ]% ##????????????? | | ????????????????????????????# %= #????????????? | | ????????????????????####????# =% #?????????????? | | ???????????????????## #??### %!#?????????????? | | ??????????????????## ###a a * ######????????# | | ??????????????????# @aa a *! #?####??## | | ?????????????????# a =%! ### #### | | ??????????????# ### #### | | ???????????? ????##### #??# ### | | ??????????? ??????????## #??# #?## ## | | ????????????## ?????????????## ##??# #??#######? | | ?????????????#????????????????####???# #?????????? | | ?????????????????????????????????????# ########### | | ?????????????????????????????????????# | | ?????????????????????????????????????############# | | ?????????????????????????????????????????????????? | | ??????????????????????????????????????????######?? | | ?????????????????????????????????????????##" "### | | ?????????????????????????????????????????#""[!""## | | ?????????????????????????????????????????#%=![! ## | | ?????????????????????????????????????????##!*=!### | | ?????????????????????????????????????????###++###? | | ?????????????????????????????????????????# = #? | | ????????????????????####????????????###### ## | | ???????????????????## ##???????????# ! # | | ??????????????????## ##??????????#! ! | | ?????????????????## ############ ###### # | | ???????????????### #????## ## | | ??????????????## ######## #####?????#####? | | ?????????????## #???#### #??????????????? | +----------------------------------------------------+ Best States ------------- Heat Dissipation 25 Energy Generation 12 Energy Capacity 265 Matter Stores 300 Matter Capacity 300 Sight Range 16 Terrain Scan Density 10 Evasion (%) 40 Item Schematics ----------------- None Robot Schematics ------------------ None Fabricated ------------ Nothing Alien Tech Used ----------------- None Achievements -------------- None Challenges ------------ None Game ------ Seed WeightFocalMatter Manual? 0 Play Time 00:10:33 Cumulative 236.7 hours Start 2021.12.04 @ 14:38:45 End 2021.12.04 @ 16:23:35 Sessions 3 Manual Loads 0 Difficulty Rogue Special Mode None Game No. 451 Rogue 296 Adventurer 148 Explorer 7 Win Type - Total 10 Types 8/0/1/1/0/0/0/0/0 Lore% 75 Gallery% 87 Achievement% 65 Wizard Run 0 Options --------- ASCII 0 Keyboard 0 Movement Numpad Keybinds 0 Fullscreen 1 Font 18/SmallcapsGlow Map View 76x50 Tactical HUD 1 Map Filters NONE Filters NONE Steam 1 RUN: 220e6b1b-8140-4f14-95ce-e7dc76cce786